[Event "GrandPrix_29.05"]
[Site "Chess.com"]
[Date "2020.05.29"]
[Round "4"]
[White "Mikhail_Golubev"]
[Black "Olghita64"]
[Result "0-1"]
[WhiteElo "2054"]
[BlackElo "2045"]
[TimeControl "600+2"]
[EndTime "11:01:50 PDT"]
[Termination "Olghita64 won by resignation"]

1. e4 {[%clk 0:10:01.9]} 1... c6 {[%clk 0:10:00.2]} 2. d4 {[%clk 0:09:59.4]}
2... d5 {[%clk 0:10:00.6]} 3. Nc3 {[%clk 0:10:00.6]} 3... dxe4 {[%clk
0:10:00.8]} 4. Nxe4 {[%clk 0:10:01.6]} 4... Bf5 {[%clk 0:10:01.4]} 5. Ng3 {[%clk
0:10:00.1]} 5... Bg6 {[%clk 0:10:02.3]} 6. c3 {[%clk 0:09:53.8]} 6... e6 {[%clk
0:09:54.6]} 7. Nh3 {[%clk 0:09:47.6]} 7... Bd6 {[%clk 0:09:51.7]} 8. Nf4 {[%clk
0:09:46]} 8... Nf6 {[%clk 0:09:48]} 9. h4 {[%clk 0:09:41]} 9... Bxf4 {[%clk
0:09:05.8]} 10. Bxf4 {[%clk 0:09:37.5]} 10... h6 {[%clk 0:09:06.8]} 11. h5
{[%clk 0:09:14.4]} 11... Bh7 {[%clk 0:09:06.5]} 12. Qb3 {[%clk 0:08:44.7]} 12...
Qb6 {[%clk 0:08:58.9]} 13. Qa3 {[%clk 0:08:10.8]} 13... Nbd7 {[%clk 0:08:52.3]}
14. Be2 {[%clk 0:07:36.9]} 14... c5 {[%clk 0:08:09.4]} 15. Be3 {[%clk 0:06:48]}
15... Nd5 {[%clk 0:07:44.7]} 16. Bd2 {[%clk 0:05:32.5]} 16... cxd4 {[%clk
0:06:50.1]} 17. cxd4 {[%clk 0:05:31.5]} 17... Qxd4 {[%clk 0:06:43.1]} 18. Rd1
{[%clk 0:05:23.9]} 18... Qc5 {[%clk 0:06:32.3]} 19. Qxc5 {[%clk 0:04:22.8]}
19... Nxc5 {[%clk 0:06:31.3]} 20. Bb5+ {[%clk 0:04:23.6]} 20... Ke7 {[%clk
0:06:13.2]} 21. O-O {[%clk 0:04:23.2]} 21... Bd3 {[%clk 0:05:46]} 22. Bxd3
{[%clk 0:04:13.1]} 22... Nxd3 {[%clk 0:05:46.2]} 23. Bxh6 {[%clk 0:04:09.1]}
23... Rxh6 {[%clk 0:04:31]} 24. Rxd3 {[%clk 0:04:08]} 24... Rd8 {[%clk
0:04:31.3]} 25. Rfd1 {[%clk 0:03:56.8]} 25... Kf8 {[%clk 0:04:13]} 26. Rc1
{[%clk 0:03:33.8]} 26... Ke8 {[%clk 0:03:46.5]} 27. Ra3 {[%clk 0:03:13.3]} 27...
a6 {[%clk 0:03:43.6]} 28. Rb3 {[%clk 0:03:14.1]} 28... b6 {[%clk 0:03:30.3]} 29.
Kf1 {[%clk 0:03:06]} 29... Kd7 {[%clk 0:03:27.9]} 30. Ra3 {[%clk 0:02:28.7]}
30... a5 {[%clk 0:03:27.3]} 31. Rf3 {[%clk 0:02:27]} 31... Ke7 {[%clk
0:03:23.8]} 32. a3 {[%clk 0:02:07.7]} 32... Rhh8 {[%clk 0:03:18.2]} 33. Rd3
{[%clk 0:01:56.6]} 33... Kf6 {[%clk 0:03:10.1]} 34. Rf3+ {[%clk 0:01:44.4]}
34... Ke7 {[%clk 0:03:08.4]} 35. Rd3 {[%clk 0:01:38.4]} 35... Rd7 {[%clk
0:03:02.3]} 36. Re1 {[%clk 0:01:37]} 36... Kd8 {[%clk 0:02:46.7]} 37. Rd4 {[%clk
0:01:26.6]} 37... Nf6 {[%clk 0:02:29.1]} 38. Rh4 {[%clk 0:00:45.8]} 38... Rd5
{[%clk 0:02:17.4]} 39. Ke2 {[%clk 0:00:12.3]} 39... Nxh5 {[%clk 0:02:11.5]} 40.
Ne4 {[%clk 0:00:08.5]} 40... Ke7 {[%clk 0:01:44.5]} 41. Reh1 {[%clk 0:00:05.9]}
41... Nf4+ {[%clk 0:01:44.8]} 42. Kf3 {[%clk 0:00:05]} 42... Rxh4 {[%clk
0:01:44.2]} 43. Rxh4 {[%clk 0:00:05.7]} 43... Nd3 {[%clk 0:01:43.1]} 44. Rh7
{[%clk 0:00:04.8]} 44... g6 {[%clk 0:01:40.3]} 45. g4 {[%clk 0:00:05.2]} 45...
Nxb2 {[%clk 0:01:34.8]} 46. g5 {[%clk 0:00:06.2]} 46... Nc4 {[%clk 0:01:32.7]}
47. a4 {[%clk 0:00:06.9]} 47... Nd2+ {[%clk 0:01:25.7]} 48. Nxd2 {[%clk
0:00:06.6]} 48... Rxd2 {[%clk 0:01:26.7]} 49. Rh8 {[%clk 0:00:08.1]} 49... Rd5
{[%clk 0:01:17.6]} 50. Rb8 {[%clk 0:00:07.4]} 50... Rxg5 {[%clk 0:01:17.3]} 51.
Rb7+ {[%clk 0:00:07.9]} 51... Kf6 {[%clk 0:01:15]} 52. Rxb6 {[%clk 0:00:08.9]}
52... Rd5 {[%clk 0:01:07.3]} 53. Ke3 {[%clk 0:00:08.5]} 53... g5 {[%clk
0:01:04.6]} 54. Rb7 {[%clk 0:00:08.7]} 54... Kg6 {[%clk 0:01:02.7]} 55. Re7
{[%clk 0:00:09.4]} 55... g4 {[%clk 0:01:01.3]} 56. Ke4 {[%clk 0:00:09.7]} 56...
Rf5 {[%clk 0:00:59.4]} 57. Ra7 {[%clk 0:00:10.1]} 57... Kg5 {[%clk 0:00:57]} 58.
Ke3 {[%clk 0:00:10.9]} 58... Rf3+ {[%clk 0:00:50.8]} 59. Ke2 {[%clk 0:00:10.8]}
59... Rf5 {[%clk 0:00:51.9]} 60. Ke3 {[%clk 0:00:11.9]} 60... Rd5 {[%clk
0:00:52.4]} 61. Ra8 {[%clk 0:00:11.6]} 61... f5 {[%clk 0:00:51.9]} 62. Rg8+
{[%clk 0:00:11.6]} 62... Kf6 {[%clk 0:00:52.8]} 63. Rb8 {[%clk 0:00:12.2]} 63...
Ke5 {[%clk 0:00:53]} 64. Rb6 {[%clk 0:00:12.4]} 64... f4+ {[%clk 0:00:53.2]} 65.
Ke2 {[%clk 0:00:13.4]} 65... Kf5 {[%clk 0:00:53.9]} 66. Rb8 {[%clk 0:00:13.2]}
66... e5 {[%clk 0:00:52.6]} 67. Rf8+ {[%clk 0:00:13.9]} 67... Ke4 {[%clk
0:00:52.8]} 68. Rg8 {[%clk 0:00:14.8]} 68... Rd4 {[%clk 0:00:50.2]} 69. Rxg4
{[%clk 0:00:14.3]} 69... Rxa4 {[%clk 0:00:50.5]} 70. f3+ {[%clk 0:00:14.9]}
70... Kd4 {[%clk 0:00:51.2]} 71. Rg5 {[%clk 0:00:15.9]} 71... Ra2+ {[%clk
0:00:52.2]} 72. Kd1 {[%clk 0:00:16]} 72... a4 {[%clk 0:00:51.7]} 73. Rg8 {[%clk
0:00:16.2]} 73... Ke3 {[%clk 0:00:49.6]} 74. Re8 {[%clk 0:00:16.6]} 74... Rd2+
{[%clk 0:00:50.3]} 75. Kc1 {[%clk 0:00:16.7]} 75... Rd5 {[%clk 0:00:50.8]} 76.
Ra8 {[%clk 0:00:16.1]} 76... Kxf3 {[%clk 0:00:51.4]} 77. Rxa4 {[%clk 0:00:16.7]}
77... e4 {[%clk 0:00:52.6]} 0-1

[Event "GrandPrix_29.05"]
[Site "Chess.com"]
[Date "2020.05.29"]
[Round "4"]
[White "GM_dmitrij"]
[Black "NikolaN98"]
[Result "1/2-1/2"]
[WhiteElo "2499"]
[BlackElo "2124"]
[TimeControl "600+2"]
[EndTime "11:01:53 PDT"]
[Termination "Game drawn by repetition"]

1. e4 {[%clk 0:10:01.9]} 1... c5 {[%clk 0:09:56.4]} 2. Nf3 {[%clk 0:10:02.5]}
2... d6 {[%clk 0:09:56.1]} 3. d4 {[%clk 0:10:03.4]} 3... cxd4 {[%clk 0:09:56.7]}
4. Nxd4 {[%clk 0:10:05.3]} 4... Nf6 {[%clk 0:09:57.4]} 5. Nc3 {[%clk 0:10:06.4]}
5... g6 {[%clk 0:09:56.7]} 6. Be3 {[%clk 0:10:05.1]} 6... Bg7 {[%clk 0:09:56.6]}
7. Be2 {[%clk 0:10:06.6]} 7... Nc6 {[%clk 0:09:56.3]} 8. Qd2 {[%clk 0:10:07.7]}
8... Ng4 {[%clk 0:09:14.4]} 9. Bxg4 {[%clk 0:10:04.5]} 9... Bxg4 {[%clk
0:09:15.9]} 10. f3 {[%clk 0:10:06]} 10... Bd7 {[%clk 0:09:15.8]} 11. O-O-O
{[%clk 0:10:07.4]} 11... Ne5 {[%clk 0:07:14.4]} 12. b3 {[%clk 0:09:50.2]} 12...
Qa5 {[%clk 0:06:57.9]} 13. Kb1 {[%clk 0:09:43.9]} 13... Rc8 {[%clk 0:06:22.4]}
14. Nd5 {[%clk 0:09:42.2]} 14... Qxd2 {[%clk 0:05:50.3]} 15. Rxd2 {[%clk
0:09:44.1]} 15... Bc6 {[%clk 0:05:43.7]} 16. Ne2 {[%clk 0:08:54.3]} 16... b6
{[%clk 0:05:18.7]} 17. Bg5 {[%clk 0:08:01.5]} 17... Bxd5 {[%clk 0:04:59.6]} 18.
exd5 {[%clk 0:07:59.1]} 18... h6 {[%clk 0:04:34.8]} 19. Bh4 {[%clk 0:07:48.1]}
19... Kd7 {[%clk 0:04:18.2]} 20. Nd4 {[%clk 0:07:37.1]} 20... Rc5 {[%clk
0:03:48.2]} 21. c4 {[%clk 0:07:37.1]} 21... a6 {[%clk 0:02:43.2]} 22. Re1 {[%clk
0:07:03.5]} 22... g5 {[%clk 0:01:54.8]} 23. Bf2 {[%clk 0:07:03.3]} 23... Bf6
{[%clk 0:01:00.7]} 24. Nf5 {[%clk 0:05:19.1]} 24... Rc7 {[%clk 0:01:01.4]} 25.
Bd4 {[%clk 0:04:51.2]} 25... h5 {[%clk 0:00:43.7]} 26. Re4 {[%clk 0:04:41.9]}
26... Rb8 {[%clk 0:00:42.9]} 27. Rde2 {[%clk 0:04:33.5]} 27... Rbc8 {[%clk
0:00:32.2]} 28. a4 {[%clk 0:03:03.3]} 28... b5 {[%clk 0:00:33]} 29. axb5 {[%clk
0:02:48.1]} 29... axb5 {[%clk 0:00:33.9]} 30. c5 {[%clk 0:02:49.2]} 30... Rxc5
{[%clk 0:00:30.9]} 31. Bxc5 {[%clk 0:02:50.1]} 31... Rxc5 {[%clk 0:00:32.8]} 32.
Ne3 {[%clk 0:02:35]} 32... Rc7 {[%clk 0:00:15.8]} 33. Rc2 {[%clk 0:02:29.5]}
33... Ra7 {[%clk 0:00:16.3]} 34. Ra2 {[%clk 0:02:30.5]} 34... Rc7 {[%clk
0:00:16.9]} 35. Nc2 {[%clk 0:01:41.8]} 35... Nd3 {[%clk 0:00:18]} 36. Re3 {[%clk
0:01:04.7]} 36... Nf4 {[%clk 0:00:17.7]} 37. Nb4 {[%clk 0:01:00.5]} 37... Bd4
{[%clk 0:00:14.2]} 38. Re4 {[%clk 0:00:51.6]} 38... Bc5 {[%clk 0:00:14.3]} 39.
g3 {[%clk 0:00:46.8]} 39... f5 {[%clk 0:00:09.4]} 40. Rxe7+ {[%clk 0:00:09]}
40... Kxe7 {[%clk 0:00:08.6]} 41. Nc6+ {[%clk 0:00:10.9]} 41... Rxc6 {[%clk
0:00:08.5]} 42. dxc6 {[%clk 0:00:12.8]} 42... Nd5 {[%clk 0:00:07.8]} 43. Ra8
{[%clk 0:00:11.9]} 43... Bb6 {[%clk 0:00:06]} 44. Rh8 {[%clk 0:00:10.6]} 44...
Nf6 {[%clk 0:00:05.9]} 45. Rb8 {[%clk 0:00:08]} 45... Nd5 {[%clk 0:00:06.5]} 46.
Rh8 {[%clk 0:00:06.1]} 46... Nf6 {[%clk 0:00:07.2]} 47. Rb8 {[%clk 0:00:07.6]}
47... Nd5 {[%clk 0:00:08.3]} 48. Kc1 {[%clk 0:00:08.9]} 48... g4 {[%clk
0:00:08.3]} 49. fxg4 {[%clk 0:00:08.3]} 49... hxg4 {[%clk 0:00:08.6]} 50. Kd2
{[%clk 0:00:06.5]} 50... Ke6 {[%clk 0:00:06.8]} 51. Re8+ {[%clk 0:00:05.5]}
51... Kf7 {[%clk 0:00:06.5]} 52. Rb8 {[%clk 0:00:05.1]} 52... Ke6 {[%clk
0:00:06.3]} 53. Re8+ {[%clk 0:00:03.6]} 53... Kf7 {[%clk 0:00:07.2]} 54. Rb8
{[%clk 0:00:05.2]} 54... b4 {[%clk 0:00:08.2]} 55. Kd3 {[%clk 0:00:05.4]} 55...
Bc7 {[%clk 0:00:08.7]} 56. Rc8 {[%clk 0:00:05.1]} 56... Ke6 {[%clk 0:00:07.4]}
57. Re8+ {[%clk 0:00:06.6]} 57... Kf7 {[%clk 0:00:08.4]} 58. Rh8 {[%clk
0:00:07.3]} 58... Ke6 {[%clk 0:00:08.2]} 59. Kc4 {[%clk 0:00:07.8]} 59... Ne7
{[%clk 0:00:04.8]} 60. Rh6+ {[%clk 0:00:05.6]} 60... Ke5 {[%clk 0:00:04.8]} 61.
Rh7 {[%clk 0:00:07.2]} 61... Ke6 {[%clk 0:00:06]} 62. Kb5 {[%clk 0:00:06.2]}
62... d5 {[%clk 0:00:06.7]} 63. Rh6+ {[%clk 0:00:07.5]} 63... Ke5 {[%clk
0:00:07.8]} 64. Rh7 {[%clk 0:00:09.1]} 64... Ke6 {[%clk 0:00:08.8]} 65. Rh6+
{[%clk 0:00:10.6]} 65... Ke5 {[%clk 0:00:10.2]} 66. Rh7 {[%clk 0:00:12.2]} 66...
Ke6 {[%clk 0:00:11.5]} 1/2-1/2

[Event "GrandPrix_29.05"]
[Site "Chess.com"]
[Date "2020.05.29"]
[Round "4"]
[White "Karinaa87"]
[Black "SergeyVashchilov"]
[Result "0-1"]
[WhiteElo "1829"]
[BlackElo "2087"]
[TimeControl "600+2"]
[EndTime "11:02:01 PDT"]
[Termination "SergeyVashchilov won by resignation"]

1. d4 {[%clk 0:10:00.8]} 1... d5 {[%clk 0:10:00.8]} 2. Nf3 {[%clk 0:10:00.1]}
2... Nf6 {[%clk 0:10:01.4]} 3. Bf4 {[%clk 0:10:00.6]} 3... c5 {[%clk 0:10:01.8]}
4. e3 {[%clk 0:10:00.5]} 4... Nc6 {[%clk 0:10:02.6]} 5. c3 {[%clk 0:10:01.2]}
5... Qb6 {[%clk 0:10:03.3]} 6. Qb3 {[%clk 0:10:00.3]} 6... c4 {[%clk 0:10:03.9]}
7. Qc2 {[%clk 0:09:44.9]} 7... Bf5 {[%clk 0:10:02.9]} 8. Qc1 {[%clk 0:09:44.7]}
8... Nh5 {[%clk 0:09:45.9]} 9. Bg3 {[%clk 0:09:35.1]} 9... Nxg3 {[%clk 0:09:34]}
10. hxg3 {[%clk 0:09:35.2]} 10... h6 {[%clk 0:09:21.7]} 11. Nbd2 {[%clk
0:09:32.7]} 11... e6 {[%clk 0:08:52.8]} 12. e4 {[%clk 0:09:22.7]} 12... Bh7
{[%clk 0:08:43.1]} 13. e5 {[%clk 0:09:00.5]} 13... Be7 {[%clk 0:08:24.4]} 14.
Be2 {[%clk 0:08:54.3]} 14... Qc7 {[%clk 0:08:24.5]} 15. Nf1 {[%clk 0:08:51.8]}
15... b5 {[%clk 0:08:12.4]} 16. Ne3 {[%clk 0:08:49.3]} 16... b4 {[%clk
0:07:54.7]} 17. O-O {[%clk 0:08:41.7]} 17... bxc3 {[%clk 0:07:40.8]} 18. bxc3
{[%clk 0:08:43.6]} 18... Qa5 {[%clk 0:07:29.1]} 19. Bd1 {[%clk 0:08:21]} 19...
Qa3 {[%clk 0:06:27.8]} 20. Qd2 {[%clk 0:07:43.3]} 20... Rb8 {[%clk 0:06:04.8]}
21. Bc2 {[%clk 0:07:36.9]} 21... Rb2 {[%clk 0:05:31.1]} 22. Rac1 {[%clk
0:07:23.4]} 22... Rxa2 {[%clk 0:04:57.4]} 23. Rb1 {[%clk 0:07:09.8]} 23... Bd3
{[%clk 0:04:37.9]} 24. Rfc1 {[%clk 0:07:00.7]} 24... O-O {[%clk 0:04:37.6]} 25.
Ne1 {[%clk 0:06:54.6]} 25... Bg6 {[%clk 0:04:15.9]} 26. f4 {[%clk 0:06:45.4]}
26... Be4 {[%clk 0:03:57.1]} 27. Nd1 {[%clk 0:06:13.2]} 27... Na5 {[%clk
0:03:30.2]} 28. Qe3 {[%clk 0:06:04.1]} 28... Nb3 {[%clk 0:03:09.2]} 29. Bxe4
{[%clk 0:05:39.1]} 29... Nxc1 {[%clk 0:03:09.2]} 30. Bc2 {[%clk 0:05:26.1]}
30... Nd3 {[%clk 0:02:31.9]} 31. Bxd3 {[%clk 0:04:48.9]} 31... cxd3 {[%clk
0:02:31.1]} 32. Qxd3 {[%clk 0:04:45.6]} 32... Ra1 {[%clk 0:02:22.2]} 33. Kh2
{[%clk 0:04:34.3]} 33... Rxb1 {[%clk 0:02:06.9]} 34. Qxb1 {[%clk 0:04:36.2]}
34... Qa6 {[%clk 0:02:02.7]} 35. f5 {[%clk 0:04:22.8]} 35... exf5 {[%clk
0:01:51.2]} 36. Ne3 {[%clk 0:04:15.2]} 36... Bg5 {[%clk 0:01:22.8]} 37. Nxf5
{[%clk 0:04:01.5]} 37... Qf1 {[%clk 0:01:16.4]} 38. Nd6 {[%clk 0:03:24.1]} 38...
Bd2 {[%clk 0:00:57.2]} 39. Qb7 {[%clk 0:03:07.9]} 39... Qxe1 {[%clk 0:00:50.6]}
40. Qxd5 {[%clk 0:03:07.1]} 40... Bxc3 {[%clk 0:00:45.6]} 41. Nf5 {[%clk
0:03:05.4]} 41... Bb4 {[%clk 0:00:27.5]} 42. Qf3 {[%clk 0:03:02]} 42... Qd2
{[%clk 0:00:15.7]} 43. d5 {[%clk 0:03:00.8]} 43... a5 {[%clk 0:00:12.8]} 44. d6
{[%clk 0:03:00.7]} 44... a4 {[%clk 0:00:13.7]} 45. Qg4 {[%clk 0:02:56.5]} 45...
Qg5 {[%clk 0:00:13.8]} 46. Ne7+ {[%clk 0:02:57.5]} 46... Kh8 {[%clk 0:00:14.1]}
47. Qxb4 {[%clk 0:02:57.9]} 47... Qxe5 {[%clk 0:00:13.1]} 48. Nc6 {[%clk
0:02:29.3]} 48... Qh5+ {[%clk 0:00:12.6]} 49. Kg1 {[%clk 0:02:30]} 49... Qd1+
{[%clk 0:00:12.7]} 50. Kh2 {[%clk 0:02:30.4]} 50... Rc8 {[%clk 0:00:04.6]} 51.
Ne7 {[%clk 0:01:25.1]} 51... Rd8 {[%clk 0:00:04.6]} 52. Nf5 {[%clk 0:01:17.3]}
52... Qh5+ {[%clk 0:00:05.4]} 53. Nh4 {[%clk 0:01:17.3]} 53... Qd5 {[%clk
0:00:06.4]} 54. Qxa4 {[%clk 0:01:15.5]} 54... Qxd6 {[%clk 0:00:07.5]} 55. Qg4
{[%clk 0:01:13.2]} 55... Qf6 {[%clk 0:00:07.9]} 56. Nf3 {[%clk 0:01:12.9]} 56...
g6 {[%clk 0:00:08.3]} 57. Qb4 {[%clk 0:01:10.2]} 57... Kg7 {[%clk 0:00:08.6]}
58. Qa5 {[%clk 0:01:09.5]} 58... Rd6 {[%clk 0:00:09]} 59. Qc5 {[%clk 0:01:09.9]}
59... Re6 {[%clk 0:00:09.5]} 60. Qc4 {[%clk 0:01:09.1]} 60... Rc6 {[%clk
0:00:09.8]} 61. Qd3 {[%clk 0:01:08.9]} 61... Rc1 {[%clk 0:00:09.6]} 62. Qe3
{[%clk 0:01:05.9]} 62... Rd1 {[%clk 0:00:09.4]} 63. Qe2 {[%clk 0:01:04.2]} 63...
Rd5 {[%clk 0:00:10]} 64. Qe4 {[%clk 0:01:00.5]} 64... Rh5+ {[%clk 0:00:10.6]}
65. Kg1 {[%clk 0:01:00.9]} 65... Qb6+ {[%clk 0:00:10.4]} 66. Kf1 {[%clk
0:01:00.2]} 66... Rh1+ {[%clk 0:00:10.5]} 67. Ke2 {[%clk 0:01:01]} 67... Qe6
{[%clk 0:00:08.7]} 68. Qxe6 {[%clk 0:01:00.2]} 68... fxe6 {[%clk 0:00:09.2]} 69.
Nd4 {[%clk 0:01:01.1]} 69... Kf6 {[%clk 0:00:09.4]} 70. Kf2 {[%clk 0:01:01.8]}
70... Rd1 {[%clk 0:00:09.5]} 71. Ne2 {[%clk 0:01:02.2]} 71... Rd5 {[%clk
0:00:09.9]} 72. Nc3 {[%clk 0:01:02.3]} 72... Rf5+ {[%clk 0:00:09.6]} 73. Ke3
{[%clk 0:01:03.3]} 73... Ke5 {[%clk 0:00:09.8]} 74. g4 {[%clk 0:01:04.1]} 74...
Rf4 {[%clk 0:00:09.7]} 75. g5 {[%clk 0:01:03.7]} 75... hxg5 {[%clk 0:00:10]} 76.
Ne2 {[%clk 0:01:02]} 76... Re4+ {[%clk 0:00:10.7]} 77. Kf3 {[%clk 0:01:02.9]}
77... Rxe2 {[%clk 0:00:11.7]} 78. Kxe2 {[%clk 0:01:03.8]} 78... Kf4 {[%clk
0:00:13.6]} 79. Kf2 {[%clk 0:01:04.8]} 79... g4 {[%clk 0:00:14.2]} 80. g3+
{[%clk 0:01:05]} 80... Ke4 {[%clk 0:00:15.1]} 81. Ke2 {[%clk 0:01:05.8]} 81...
g5 {[%clk 0:00:16.5]} 82. Kf2 {[%clk 0:01:06.4]} 82... Kd3 {[%clk 0:00:18]} 83.
Kf1 {[%clk 0:01:05]} 83... Kd2 {[%clk 0:00:18.3]} 84. Kf2 {[%clk 0:01:06]} 84...
e5 {[%clk 0:00:19.5]} 0-1

[Event "GrandPrix_29.05"]
[Site "Chess.com"]
[Date "2020.05.29"]
[Round "4"]
[White "Robert_Chessmood"]
[Black "Bacyanide"]
[Result "0-1"]
[WhiteElo "2077"]
[BlackElo "2358"]
[TimeControl "600+2"]
[EndTime "11:02:02 PDT"]
[Termination "Bacyanide won by resignation"]

1. e4 {[%clk 0:10:01.9]} 1... e5 {[%clk 0:09:58.5]} 2. Nf3 {[%clk 0:10:01.4]}
2... Nc6 {[%clk 0:09:59.6]} 3. Bb5 {[%clk 0:10:02.8]} 3... a6 {[%clk 0:10:00.3]}
4. Ba4 {[%clk 0:10:04]} 4... Nf6 {[%clk 0:10:01.2]} 5. O-O {[%clk 0:10:04.3]}
5... b5 {[%clk 0:10:02.3]} 6. Bb3 {[%clk 0:10:05]} 6... Bc5 {[%clk 0:10:03.8]}
7. a4 {[%clk 0:10:00.5]} 7... Rb8 {[%clk 0:10:04]} 8. Nxe5 {[%clk 0:10:01.4]}
8... Nxe5 {[%clk 0:10:04]} 9. d4 {[%clk 0:10:01.6]} 9... Bxd4 {[%clk 0:10:03.6]}
10. Qxd4 {[%clk 0:10:03.5]} 10... d6 {[%clk 0:10:03.5]} 11. f4 {[%clk
0:10:01.7]} 11... c5 {[%clk 0:09:34.8]} 12. Qd1 {[%clk 0:08:53.9]} 12... Neg4
{[%clk 0:08:31.2]} 13. h3 {[%clk 0:08:30.3]} 13... c4 {[%clk 0:08:29.3]} 14.
hxg4 {[%clk 0:08:04.4]} 14... Bxg4 {[%clk 0:07:51.7]} 15. Qe1 {[%clk 0:07:56.7]}
15... cxb3 {[%clk 0:07:52.4]} 16. cxb3 {[%clk 0:07:37.7]} 16... O-O {[%clk
0:07:51.2]} 17. Nc3 {[%clk 0:07:33]} 17... Re8 {[%clk 0:07:28.1]} 18. axb5
{[%clk 0:07:30.1]} 18... axb5 {[%clk 0:07:28.2]} 19. b4 {[%clk 0:07:25.2]} 19...
Nxe4 {[%clk 0:07:15.3]} 20. Nxe4 {[%clk 0:07:23.1]} 20... Bf5 {[%clk 0:07:16.4]}
21. Qf2 {[%clk 0:06:53.1]} 21... Rxe4 {[%clk 0:07:12.5]} 22. Bd2 {[%clk
0:06:51.8]} 22... Qe7 {[%clk 0:06:55.5]} 23. Rfe1 {[%clk 0:06:50.2]} 23... Re8
{[%clk 0:06:52.6]} 24. Bc3 {[%clk 0:06:46.1]} 24... Rxe1+ {[%clk 0:06:29.5]} 25.
Rxe1 {[%clk 0:06:45.4]} 25... Be4 {[%clk 0:06:29.4]} 26. Qd4 {[%clk 0:06:20.8]}
26... f6 {[%clk 0:06:28.2]} 27. Re3 {[%clk 0:06:13.6]} 27... d5 {[%clk
0:06:02.2]} 28. Kf2 {[%clk 0:05:39.7]} 28... Qc7 {[%clk 0:05:53.8]} 29. g3
{[%clk 0:05:20]} 29... Qc8 {[%clk 0:05:41.1]} 30. Qd1 {[%clk 0:03:43.4]} 30...
Qh3 {[%clk 0:05:31.1]} 31. Qg1 {[%clk 0:03:40.9]} 31... h5 {[%clk 0:05:26.7]}
32. Ke1 {[%clk 0:03:20.6]} 32... Qd7 {[%clk 0:04:14.8]} 33. Re2 {[%clk
0:02:56.9]} 33... Ra8 {[%clk 0:04:03.5]} 34. Kd2 {[%clk 0:02:49.6]} 34... Qf5
{[%clk 0:03:25.3]} 35. Qc5 {[%clk 0:02:29.5]} 35... h4 {[%clk 0:03:02.6]} 36.
gxh4 {[%clk 0:02:10.7]} 36... Qxf4+ {[%clk 0:03:02.3]} 37. Qe3 {[%clk 0:02:12]}
37... Qxh4 {[%clk 0:02:49]} 38. Re1 {[%clk 0:01:18.7]} 38... Re8 {[%clk
0:02:36.4]} 39. Qg1 {[%clk 0:00:32.5]} 39... Qf4+ {[%clk 0:02:15.1]} 40. Qe3
{[%clk 0:00:33.5]} 40... Qxe3+ {[%clk 0:02:15.4]} 41. Rxe3 {[%clk 0:00:35.4]}
41... Kf7 {[%clk 0:02:14.7]} 42. Rh3 {[%clk 0:00:31.1]} 42... g5 {[%clk
0:02:11.1]} 43. Rh6 {[%clk 0:00:28.5]} 43... Re6 {[%clk 0:01:56.6]} 44. Rh8
{[%clk 0:00:28.1]} 44... g4 {[%clk 0:01:57.6]} 45. Bd4 {[%clk 0:00:25]} 45... g3
{[%clk 0:01:53.3]} 46. Rb8 {[%clk 0:00:24.6]} 46... g2 {[%clk 0:01:50.6]} 47.
Rxb5 {[%clk 0:00:25.1]} 47... Bf3 {[%clk 0:01:41.2]} 48. Rb6 {[%clk 0:00:17.4]}
48... Re4 {[%clk 0:01:21.2]} 49. Bg1 {[%clk 0:00:04.7]} 49... Re2+ {[%clk
0:01:16.3]} 50. Kd3 {[%clk 0:00:05.6]} 50... Re1 {[%clk 0:01:16.7]} 51. Bf2
{[%clk 0:00:03.8]} 51... g1=Q {[%clk 0:01:03.4]} 52. Bxg1 {[%clk 0:00:05.1]}
52... Rxg1 {[%clk 0:01:05.3]} 53. b5 {[%clk 0:00:07]} 53... Rb1 {[%clk
0:01:04.3]} 54. Kc3 {[%clk 0:00:06]} 54... d4+ {[%clk 0:01:03.8]} 55. Kxd4
{[%clk 0:00:06.6]} 55... Rxb2 {[%clk 0:01:05]} 56. Kc5 {[%clk 0:00:05.1]} 56...
Kg6 {[%clk 0:00:57.6]} 57. Rb8 {[%clk 0:00:02.6]} 57... f5 {[%clk 0:00:53.5]}
58. b6 {[%clk 0:00:04.1]} 58... Kg5 {[%clk 0:00:53.4]} 59. Rg8+ {[%clk
0:00:03.8]} 59... Kf4 {[%clk 0:00:54.2]} 60. Rg7 {[%clk 0:00:05.2]} 60... Be4
{[%clk 0:00:55]} 61. Rf7 {[%clk 0:00:05.5]} 61... Ke3 {[%clk 0:00:54.1]} 62. Ra7
{[%clk 0:00:06]} 62... f4 {[%clk 0:00:53.9]} 63. Ra3+ {[%clk 0:00:07.6]} 63...
Kf2 {[%clk 0:00:43]} 64. Ra4 {[%clk 0:00:08]} 64... Kf3 {[%clk 0:00:41]} 65. Kd4
{[%clk 0:00:06.9]} 65... Rd2+ {[%clk 0:00:34.4]} 66. Ke5 {[%clk 0:00:07.7]}
66... Rd5+ {[%clk 0:00:31.8]} 67. Ke6 {[%clk 0:00:09]} 67... Rb5 {[%clk
0:00:31.7]} 68. Ra3+ {[%clk 0:00:08.6]} 68... Kg4 {[%clk 0:00:30.7]} 69. Ra4
{[%clk 0:00:10.1]} 69... Bg2 {[%clk 0:00:30.2]} 70. Ra6 {[%clk 0:00:07.4]} 70...
f3 {[%clk 0:00:24.6]} 71. Ra4+ {[%clk 0:00:06]} 71... Kg3 {[%clk 0:00:25.2]} 0-1